Cogmind - Beta 15 @@@ ROGUE MODE // 2025.06.09 @ 00:38:42 Player: The Gourd Result: Destroyed self with Mini Grenade Launcher Performance ------------- Evolutions (0) 0 Regions Visited (2) 400 Robots Destroyed (31) 155 Value Destroyed (570) 570 Prototype IDs (0) 0 Alien Tech Used (0) 0 Bonus (0) 0 TOTAL SCORE: 1125 Bonus ------- None Cogmind --------- Core Integrity 0/250 Matter 290/300 Energy 125/125 System Corruption 0% Temperature Cool (0) Movement Treading (240) Ox1 Location -10/Mines Parts ------- > --- POWER (1) -------- Light Ion Engine > --- PROPULSION (2) --- Light Treads Light Treads > --- UTILITY (2) ------ High-capacity Storage Unit Hacking Suite > --- WEAPON (2) ------- Light Cannon Mini Grenade Launcher > --- INVENTORY (20) --- Light Ion Engine Light Treads Compact Wheel Heat Sink Medium Storage Unit Large Storage Unit Heavy Assault Rifle Heavy Assault Rifle Heavy Assault Rifle Light Cannon Light Cannon Light Cannon Light Cannon Light Cannon Light Cannon Mini Grenade Launcher Mini Grenade Launcher Mini Grenade Launcher Datajack Hammer Peak State ------------ > --- POWER ------------ Light Ion Engine > --- PROPULSION ------- Light Treads Light Treads > --- UTILITY ---------- High-capacity Storage Unit Hacking Suite > --- WEAPON ----------- Heavy Assault Rifle Heavy Assault Rifle > --- INVENTORY -------- Light Ion Engine Light Treads Compact Wheel Heat Sink Medium Storage Unit Large Storage Unit Heavy Assault Rifle Light Cannon Light Cannon Light Cannon Light Cannon Light Cannon Light Cannon Mini Grenade Launcher Mini Grenade Launcher Mini Grenade Launcher Mini Grenade Launcher Datajack Mining Laser [Rating: 13] Favorites ----------- Power Light Ion Engine Engine Light Ion Engine Propulsion Light Treads Treads Light Treads Wheel Compact Wheel Utility High-capacity Storage Unit Device Seismic Detector Storage High-capacity Storage Unit Hackware Hacking Suite Weapon Light Cannon Energy Gun EM Pulse Gun Ballistic Gun Heavy Assault Rifle Ballistic Cannon Light Cannon Launcher Mini Grenade Launcher Special Weapon Mining Laser Build | -11 -10 -10 ------- Run | Yrd Mat Min Slots Evolved . | . . . Power . | . . . Propulsion . | . . . Utility . | . . . Weapon . | . . . Parts Attached 27 | 8 19 . Power 3 | 1 2 . Engine 3 | 1 2 . Core . | . . . Reactor . | . . . Propulsion 5 | 2 3 . Treads 3 | 2 1 . Leg . | . . . Wheel 2 | . 2 . Hover . | . . . Flight . | . . . Utility 4 | 2 2 . Device 1 | 1 . . Storage 2 | 1 1 . Processor . | . . . Hackware 1 | . 1 . Protection . | . . . Artifact . | . . . Weapon 15 | 3 12 . Energy Gun 3 | 2 1 . Energy Cannon . | . . . Ballistic Gun 3 | 1 2 . Ballistic Cannon 7 | . 7 . Launcher 1 | . 1 . Special Weapon 1 | . 1 . Impact Weapon . | . . . Slashing Weapon . | . . . Piercing Weapon . | . . . Special Melee Weapon . | . . . Unidentified Prototypes . | . . . Parts Lost 2 | . 2 . Power 1 | . 1 . Propulsion . | . . . Utility . | . . . Weapon 1 | . 1 . Highest Loss Streak 1 | . 1 . To Critical Strikes . | . . . Average Backups 17 | 4 18 20 Power . | . . 1 Propulsion 2 | 1 2 2 Utility 2 | . 3 3 Weapon 10 | . 11 13 Tool/Special . | . . . Unused Backups 12 | . 4 8 Power . | . . . Propulsion . | . . . Utility 5 | . 2 3 Weapon 6 | . 2 4 Tool/Special 1 | . . 1 Average Slot Usage (%) 98 | . 98 100 Engine 12 | . 12 14 Treads 26 | . 26 28 Device 11 | . 11 . Storage 14 | . 14 14 Hackware 2 | . 2 14 Energy Gun 4 | . 4 . Ballistic Gun 6 | . 7 . Ballistic Cannon 15 | . 15 14 Peak Build Rating 13 | 7 13 12 Average Rating 9 | 6 9 12 On Entrance 6 | . 7 12 Naked Turns . | . . . Heaviest Build 50 | 12 50 47 Greatest Support 40 | 40 40 40 Greatest Overweight (x) 1 | . 1 1 Average Overweight (x) . | . . 1 Largest Inventory Capacity 20 | 8 20 20 Average Capacity 19 | 7 19 20 Most Carried 20 | 7 20 20 Average Carried 17 | 4 18 19 Final Capacity 20 | 8 20 20 Final Carried 20 | 6 20 20 Class Distribution -------------------- 100% | Mutant Dominant Class ---------------- Mutant | -10/Materials Mutant | -10/Mines Resources | -11 -10 -10 ----------- Run | Yrd Mat Min Matter Collected 891 | 328 553 10 Remotely . | . . . Salvage Created 807 | 185 622 . Parts 54 | 12 42 . Haulers Intercepted 2 | . 2 . Recyclers Shooed 2 | 2 . . Parts Field Recycled . | . . . Retrieved Matter . | . . . Parts Self-Destructed . | . . . Prevented . | . . . Kills | -11 -10 -10 ------- Run | Yrd Mat Min Combat Hostiles Destroyed 18 | . 18 . Guns 4 | . 4 . Cannons 8 | . 8 . AOE 6 | . 6 . Classes Destroyed 8 | 2 6 . Worker 2 | . 2 . Tunneler 4 | 4 . . Hauler 2 | . 2 . Recycler 2 | 1 1 . Operator 1 | . 1 . Watcher 2 | . 2 . Swarmer 8 | . 8 . Grunt 10 | . 10 . Best Kill Streak 8 | 2 8 . Combat Bots Only 5 | . 5 . Max Kills in Single Turn 5 | 1 5 . Gunslinging . | . . . Exploded 3 | . 3 . Melee . | . . . Uniques/NPCs Destroyed . | . . . Combat | -11 -10 -10 -------- Run | Yrd Mat Min Hostile Shots Fired 60 | . 58 2 Missed 16 | . 15 1 Hits 44 | . 43 1 Projectile 44 | . 43 1 Critical Strikes 1 | . 1 . Damage Taken 712 | . 674 38 Core 251 | . 237 14 Absorbed by Shields . | . . . Regen/Repaired (Parts) 189 | . 189 . Core Remaining (%) 100 | 100 . . Volleys Fired 128 | 48 79 1 Largest 2 | 2 2 1 Hottest 100 | 60 100 30 Shots Fired 182 | 49 132 1 Gun 114 | 49 65 . Cannon 60 | . 60 . Launcher 1 | . . 1 Special 7 | . 7 . Kinetic 135 | 48 87 . Thermal 7 | . 7 . Explosive 1 | . . 1 Electromagnetic 39 | 1 38 . Robot Hit Streak 10 | 10 8 . Robot Miss Streak 5 | 3 5 3 Penetration Max . | . . . Secondary Targets . | . . . Shots Hit Robots 102 | 36 66 . Core Hits 44 | 9 35 . Critical Kills . | . . . Critical Parts Destroyed . | . . . Critical Strikes 3 | . 3 . Blast 2 | . 2 . Corrupt 1 | . 1 . Melee Attacks . | . . . Impact . | . . . Slashing . | . . . Piercing . | . . . Sneak Attacks . | . . . Combat Hostiles . | . . . Follow-up Attacks . | . . . Damage Inflicted 2010 | 284 1726 . Guns 824 | 284 540 . Cannons 441 | . 441 . Explosions 745 | . 745 . Melee . | . . . Ramming . | . . . Kinetic 903 | 284 619 . Thermal 745 | . 745 . Explosive . | . . . Electromagnetic 362 | . 362 . Impact . | . . . Slashing . | . . . Piercing . | . . . Highest Corruption . | . . . Average Corruption . | . . . Corruption Purged . | . . . Corruption Blocked . | . . . Overload Shots . | . . . Overflow Damage 48 | . 48 . Projectiles 25 | . 25 . Explosions 23 | . 23 . Melee . | . . . Knockbacks 7 | . 7 . Impact . | . . . Kinetic 7 | . 7 . Secondary . | . . . Self-Inflicted Damage 248 | . 206 42 Shots 4 | . 3 1 Rammed . | . . . Targets Rammed . | . . . Kicked . | . . . Crushed . | . . . Highest Temperature 270 | 20 270 . Average Temperature 61 | 15 61 . Received Heat Transfer 180 | . 180 . Siege Activations . | . . . Martial Activations . | . . . Shielding Activations . | . . . Robots Disrupted . | . . . Combat Hostiles . | . . . Robots Corrupted . | . . . Combat Hostiles . | . . . Parts Fried 1 | . 1 . Impact Corruptions . | . . . Robots Melted . | . . . Combat Hostiles . | . . . Parts Melted . | . . . Heat Transferred 850 | . 850 . Parts Sabotaged . | . . . Parts Stolen . | . . . Parts Stripped . | . . . Power Chain Reactions 4 | . 4 . Alert | -11 -10 -10 ------- Run | Yrd Mat Min Maximum Alert Level . | . . . Low Security (%) 100 | 100 100 100 Level 1 . | . . . Level 2 . | . . . Level 3 . | . . . Level 4 . | . . . Level 5 . | . . . High Security . | . . . Max Security . | . . . Peak Influence 183 | 5 183 18 Initial 18 | . . 18 Average 55 | 1 60 7 Influence Increases 706 | 25 677 4 Destroy 0b10 Robot/C 360 | . 360 . Destroy 0b10 Robot/NC 65 | 25 40 . Destroy Leader 78 | . 78 . Successful Hack 16 | . 16 . Select Force Hacks 60 | . 60 . Disable Machine 45 | . 45 . Destroy Structure 52 | . 48 4 Lose Combat Pursuer 30 | . 30 . Influence Decreases 702 | 25 629 48 Entered New Map 30 | . . 30 Time Decay 652 | 25 609 18 Lost Part 20 | . 20 . Squads Dispatched 3 | . 3 . Investigation 2 | . 2 . Extermination . | . . . Reinforcement 1 | . 1 . Assault . | . . . Garrison . | . . . Intercept . | . . . Searches Triggered . | . . . Construction Impeded . | . . . Haulers Reinforced . | . . . Active Scanning Responses . | . . . Cargo Convoy Interrupts . | . . . Stealth | -11 -10 -10 --------- Run | Yrd Mat Min Distress Signals 1 | . 1 . Communications Jammed . | . . . Distress Signals . | . . . Times Spotted 32 | . 29 3 Peak Tracking Total 6 | . 6 3 Tactical Retreats 2 | . 2 . Traps | -11 -10 -10 ------- Run | Yrd Mat Min Traps Triggered . | . . . Indirectly . | . . . Trap Hack Attempts . | . . . Triggered . | . . . Disarmed . | . . . Reprogrammed . | . . . Reused . | . . . Traps Extracted . | . . . Installed . | . . . Triggered . | . . . Machines | -11 -10 -10 ---------- Run | Yrd Mat Min Machines Disabled 3 | . 3 . Max in Single Turn 2 | . 2 . Machines Repaired . | . . . Machines Dismantled . | . . . Machines Sabotaged . | . . . Overloaded Fab Kills . | . . . Hacking | -11 -10 -10 --------- Run | Yrd Mat Min Machines Accessed 9 | . 9 . Terminals 6 | . 6 . Fabricators . | . . . Repair Stations 1 | . 1 . Recycling Units 2 | . 2 . Scanalyzers . | . . . Garrison Access . | . . . Total Hacks 26 | . 26 . Successful 16 | . 16 . Failed 10 | . 10 . Catastrophic . | . . . Database Lockouts . | . . . Manual 20 | . 20 . Terminals 17 | . 17 . Fabricators . | . . . Repair Stations 6 | . 6 . Recycling Units 3 | . 3 . Scanalyzers . | . . . Garrison Access . | . . . Terminal Hacks . | . . . Fabricator Hacks . | . . . Repair Station Hacks 6 | . 6 . Scan Component 3 | . 3 . Repair 3 | . 3 . Recycling Unit Hacks . | . . . Scanalyzer . | . . . Garrison Access Hacks . | . . . Unauthorized Hacks 10 | . 10 . Terminals 8 | . 8 . Botnet 3 | . 3 . Skim 5 | . 5 . Fabricators . | . . . Repair Stations . | . . . Recycling Units 2 | . 2 . Tunnel 2 | . 2 . Scanalyzers . | . . . Garrison Access . | . . . Data Cores Recovered . | . . . Used . | . . . Hacking Detections 7 | . 7 . Full Trace Events . | . . . Feedback Events . | . . . Feedback Blocked . | . . . Robot Schematics Acquired . | . . . Robots Built . | . . . Authchips . | . . . Time . | . . . Total Robot Build Rating . | . . . Part Schematics Acquired . | . . . Parts Built . | . . . Authchips . | . . . Time . | . . . Total Part Build Rating . | . . . Parts Repaired 3 | . 3 . Time 78 | . 78 . Parts Recycled . | . . . Recycled Matter . | . . . Retrieved Matter . | . . . Retrieved Components . | . . . Parts Scanalyzed . | . . . Part Schematics Acquired . | . . . Parts Damaged . | . . . Bothacking | -11 -10 -10 ------------ Run | Yrd Mat Min Used RIF Installer . | . . . Robots Hacked . | . . . Non-combat . | . . . Combat . | . . . Robot Hacks Applied . | . . . Relay Couplers Released . | . . . Fabnet Peak Effective % . | . . . Robots Rewired . | . . . Allies Hacked . | . . . Hacks Repelled . | . . . Allies | -11 -10 -10 -------- Run | Yrd Mat Min Total Allies . | . . . Largest Group . | . . . Highest-Rated Group . | . . . Highest-Rated Ally . | . . . Total Orders . | . . . Ally Attacks . | . . . Total Damage . | . . . Kills . | . . . Allies Corrupted . | . . . Allies Melted . | . . . Intel | -11 -10 -10 ------- Run | Yrd Mat Min Active Infowar (turns) 2536 | 135 2401 . Seismic 2536 | 135 2401 . Robot Analysis Total . | . . . Derelict Logs Recovered 1 | . . 1 Drone Launches . | . . . Drone Recoveries . | . . . Exploration | -11 -10 -10 ------------- Run | Yrd Mat Min Turns Passed 3217 | 216 2932 69 Spaces Moved 1145 | 70 1047 28 Core 3 | 3 . . Treads 1090 | 67 995 28 Legs . | . . . Wheels 52 | . 52 . Hover . | . . . Flight . | . . . Fastest Speed 50 | 50 105 240 Average Speed 228 | 155 232 240 Slowest Speed 240 | 160 240 240 Overloaded Moves . | . . . Propulsion Burnouts . | . . . Robots Hopped . | . . . Potential Cave-ins . | . . . Cave-ins Triggered . | . . . Exploration Rate (%) 36 | 6 94 8 Regions Visited 2 Branch Regions 1 Pre-discovered Areas 2 | . 2 . Known Exits Taken . | . . . Unknown Exits Taken 2 | 1 1 . Scrap Searched 1 | . . 1 Spaces Dug 4 | . 4 . Terrain Destroyed 50 | . 46 4 Melee . | . . . Projectile 7 | . 7 . AOE 43 | . 39 4 Terrain Rammed . | . . . Walls Destroyed . | . . . Machines Disabled . | . . . Actions | -11 -10 -10 --------- Run | Yrd Mat Min Total 1566 | 135 1400 31 Wait 210 | 2 208 . Move 1143 | 69 1046 28 Hop . | . . . Pick Up 33 | 7 25 1 Fast Attach 11 | 7 4 . Attach 3 | . 3 . Detach 2 | . 2 . Swap 22 | 1 21 . Drop 14 | 1 12 1 Fire 128 | 48 79 1 Melee . | . . . Ram . | . . . Kick . | . . . Crush . | . . . Escape Stasis . | . . . Rewire . | . . . Trap . | . . . Miscellaneous . | . . . Route ------- -11/Scrapyard -10/Materials (discovered 4 exits: *Mat x3 / [*Min]) -10/Mines (discovered 3 exits: Mat x2 / Exi) History --------- Turn | Location | Event 27 | -11/Scrapyard | Discovered new exit (range 15) 217 | -11/Scrapyard | Entered Materials 300 | -10/Materials | Build established: Mutant 461 | -10/Materials | Core integrity fell below 50% 466 | -10/Materials | Discovered new exit (range 15) 630 | -10/Materials | Discovered new exit (range 13) 710 | -10/Materials | Core integrity fell below 20% 717 | -10/Materials | Derelicts attacked the area 1154 | -10/Materials | Discovered new exit (range 5) 1607 | -10/Materials | Discovered new exit (range 15) 1888 | -10/Materials | Repaired Lgt. Treads 1915 | -10/Materials | Repaired Lgt. Treads 1942 | -10/Materials | Repaired Lgt. Treads 2889 | -10/Materials | Learned Storage stockpile data 2987 | -10/Materials | Learned location of 2 exits from Subcaves 3018 | -10/Materials | Learned Storage garrison access intel 3113 | -10/Materials | Learned location of 2 exits from Subcaves 3149 | -10/Materials | Entered Mines 3150 | -10/Mines | Identified exit to Materials 3189 | -10/Mines | Identified exit to Exiles 3218 | -10/Mines | Destroyed self with Mini Grenade Launcher Last Messages --------------- 03028_ U-05 Engineer builds a Wall. 03037_ Connecting with Terminal... 03061_ >> SKIM: Stored Materials entrances (x3). 03082_ Acquired 28 matter. 03113_ >> SKIM: Stored Subcaves exits (x2). 03113_ >> SKIM: Data seek routine purged. LOCATION=UNKNOWN GOAL=ESCAPE Something is scanning the area. Loading 2 Materials entrances... 03178_ Searching scrap... 03178_ Found Ion Engine. 03178_ Found Hammer. 03178_ Found Aluminum Leg. 03178_ Found 67 Matter. 03179_ Acquired 10 matter. 03181_ Dropped Mining Laser. 03184_ Acquired Hammer. 03189_ Acquired derelict log, extracted data. Loading 1 Mines exit... Map ----- +----------------------------------------------------+ | ?????????????????????????????????????????????????? | | ??????????